[Event "NJSK 2026 Jeugd A"]
[Site "Helmond, Netherlands"]
[Date "2026.04.30"]
[Round "6.5"]
[White "Dinanath, Hrdya"]
[Black "Ponomarev, Ivan"]
[Result "1-0"]
[TimeControl "90min/40moves + 30min + 30sec/move"]
[WhiteTitle "-"]
[BlackTitle "-"]
[WhiteFideId "1087991"]
[BlackFideId "34411003"]
[WhiteElo "2107"]
[BlackElo "1983"]

1. e4 {[%clk 01:30:58]} {[%emt 00:00:01]} c5 {[%clk 01:30:59]} {[%emt
00:00:02]} 2. Nf3 {[%clk 01:31:22]} {[%emt 00:00:06]} d6 {[%clk 01:31:28]}
{[%emt 00:00:02]} 3. Bb5+ {[%clk 01:31:44]} {[%emt 00:00:06]} Bd7 {[%clk
01:31:54]} {[%emt 00:00:04]} 4. Bxd7+ {[%clk 01:32:09]} {[%emt 00:00:05]} Qxd7
{[%clk 01:32:20]} {[%emt 00:00:04]} 5. c4 {[%clk 01:32:23]} {[%emt 00:00:19]}
Nf6 {[%clk 01:32:45]} {[%emt 00:00:02]} 6. Nc3 {[%clk 01:32:23]} {[%emt
00:00:29]} g6 {[%clk 01:33:12]} {[%emt 00:00:03]} 7. d3 {[%clk 01:29:31]}
{[%emt 00:03:22]} Nc6 {[%clk 01:30:31]} {[%emt 00:03:11]} 8. h3 {[%clk
01:29:44]} {[%emt 00:00:18]} Bg7 {[%clk 01:24:33]} {[%emt 00:06:28]} 9. O-O
{[%clk 01:25:35]} {[%emt 00:04:39]} O-O {[%clk 01:23:15]} {[%emt 00:01:47]} 10.
Be3 {[%clk 01:20:28]} {[%emt 00:05:36]} Rac8 {[%clk 01:09:44]} {[%emt
00:14:01]} 11. Qd2 {[%clk 00:58:32]} {[%emt 00:22:26]} e6 {[%clk 01:03:31]}
{[%emt 00:06:43]} 12. Bh6 {[%clk 00:55:01]} {[%emt 00:04:01]} Rfd8 {[%clk
00:57:45]} {[%emt 00:06:17]} 13. Qg5 {[%clk 00:50:32]} {[%emt 00:04:57]} Qe7
{[%clk 00:35:37]} {[%emt 00:22:38]} 14. Bxg7 {[%clk 00:47:18]} {[%emt
00:03:45]} Kxg7 {[%clk 00:36:00]} {[%emt 00:00:07]} 15. Rae1 {[%clk 00:44:43]}
{[%emt 00:03:05]} Nd7 {[%clk 00:35:26]} {[%emt 00:01:04]} 16. Qd2 {[%clk
00:44:34]} {[%emt 00:00:39]} Nde5 {[%clk 00:34:51]} {[%emt 00:01:05]} 17. Nh2
{[%clk 00:44:32]} {[%emt 00:00:31]} Nd4 {[%clk 00:32:34]} {[%emt 00:02:48]} 18.
f4 {[%clk 00:44:36]} {[%emt 00:00:25]} Nd7 {[%clk 00:25:41]} {[%emt 00:07:24]}
19. f5 {[%clk 00:44:06]} {[%emt 00:00:59]} h5 {[%clk 00:18:02]} {[%emt
00:08:09]} 20. Rf2 {[%clk 00:42:29]} {[%emt 00:02:08]} Rh8 {[%clk 00:12:54]}
{[%emt 00:05:38]} 21. f6+ {[%clk 00:25:45]} {[%emt 00:17:14]} Nxf6 {[%clk
00:13:13]} {[%emt 00:00:11]} 22. Ref1 {[%clk 00:26:13]} {[%emt 00:00:02]} Nd7
{[%clk 00:11:29]} {[%emt 00:02:14]} 23. Rxf7+ {[%clk 00:25:58]} {[%emt
00:00:45]} Qxf7 {[%clk 00:11:57]} {[%emt 00:00:01]} 24. Rxf7+ {[%clk 00:26:21]}
{[%emt 00:00:08]} Kxf7 {[%clk 00:12:25]} {[%emt 00:00:02]} 25. Qf4+ {[%clk
00:26:31]} {[%emt 00:00:20]} Ke7 {[%clk 00:12:39]} {[%emt 00:00:16]} 26. Qg5+
{[%clk 00:26:53]} {[%emt 00:00:07]} Kf7 {[%clk 00:10:37]} {[%emt 00:02:33]} 27.
e5 {[%clk 00:23:48]} {[%emt 00:03:35]} dxe5 {[%clk 00:07:01]} {[%emt 00:04:06]}
28. Ne4 {[%clk 00:22:22]} {[%emt 00:01:56]} Rc6 {[%clk 00:07:23]} {[%emt
00:00:08]} 29. Nf3 {[%clk 00:14:03]} {[%emt 00:08:49]} Nxf3+ {[%clk 00:07:44]}
{[%emt 00:00:08]} 30. gxf3 {[%clk 00:14:30]} {[%emt 00:00:03]} Rf8 {[%clk
00:06:19]} {[%emt 00:01:55]} 31. Qh6 {[%clk 00:14:08]} {[%emt 00:00:53]} Rg8
{[%clk 00:05:39]} {[%emt 00:01:09]} 32. Ng5+ {[%clk 00:09:08]} {[%emt
00:05:30]} Kf6 {[%clk 00:05:50]} {[%emt 00:00:20]} 33. Qh7 {[%clk 00:09:14]}
{[%emt 00:00:24]} Rg7 {[%clk 00:02:15]} {[%emt 00:04:05]} 34. Qh8 {[%clk
00:09:35]} {[%emt 00:00:08]} a6 {[%clk 00:01:15]} {[%emt 00:01:31]} 35. Ne4+
{[%clk 00:08:48]} {[%emt 00:01:16]} Kf7 {[%clk 00:01:41]} {[%emt 00:00:04]} 36.
Qd8 {[%clk 00:09:14]} {[%emt 00:00:04]} Nf8 {[%clk 00:01:45]} {[%emt 00:00:26]}
37. Nf6 {[%clk 00:04:07]} {[%emt 00:05:38]} Nh7 {[%clk 00:00:49]} {[%emt
00:01:26]} 38. Nd7 {[%clk 00:04:13]} {[%emt 00:00:24]} Rg8 {[%clk 00:00:41]}
{[%emt 00:00:38]} 39. Nxe5+ {[%clk 00:04:38]} {[%emt 00:00:05]} Kg7 {[%clk
00:01:08]} {[%emt 00:00:03]} 40. Qe7+ {[%clk 00:04:40]} {[%emt 00:00:28]} Kh6
{[%clk 00:00:53]} {[%emt 00:00:45]} 41. Nf7+ {[%clk 00:04:59]} {[%emt
00:00:11]} Kg7 {[%clk 00:01:17]} {[%emt 00:00:07]} 42. Ng5+ {[%clk 00:05:24]}
{[%emt 00:00:05]} 1-0

[Event "NJSK 2026 Jeugd A"]
[Site "Helmond, Netherlands"]
[Date "2026.04.30"]
[Round "6.6"]
[White "Kshirsagar, Pranav"]
[Black "Xu, Alex Z"]
[Result "0-1"]
[TimeControl "90min/40moves + 30min + 30sec/move"]
[WhiteTitle "-"]
[BlackTitle "-"]
[WhiteFideId "1084011"]
[BlackFideId "40114775"]
[WhiteElo "2148"]
[BlackElo "1965"]

1. d4 {[%clk 01:30:59]} {[%emt 00:00:01]} d5 {[%clk 01:30:57]} {[%emt
00:00:04]} 2. c4 {[%clk 01:31:19]} {[%emt 00:00:09]} Nc6 {[%clk 01:31:09]}
{[%emt 00:00:18]} 3. Nf3 {[%clk 01:30:30]} {[%emt 00:01:19]} Bg4 {[%clk
01:31:27]} {[%emt 00:00:12]} 4. Nc3 {[%clk 01:29:05]} {[%emt 00:01:55]} Bxf3
{[%clk 01:31:21]} {[%emt 00:00:36]} 5. exf3 {[%clk 01:27:43]} {[%emt 00:01:51]}
e6 {[%clk 01:31:37]} {[%emt 00:00:15]} 6. Be3 {[%clk 01:26:18]} {[%emt
00:01:55]} Nf6 {[%clk 01:22:16]} {[%emt 00:09:51]} 7. Rc1 {[%clk 01:22:14]}
{[%emt 00:04:32]} a6 {[%clk 01:18:28]} {[%emt 00:04:17]} 8. a3 {[%clk
01:08:08]} {[%emt 00:14:37]} Be7 {[%clk 01:16:42]} {[%emt 00:02:16]} 9. b4
{[%clk 01:06:33]} {[%emt 00:02:05]} dxc4 {[%clk 01:12:14]} {[%emt 00:04:58]} 10.
Bxc4 {[%clk 01:06:47]} {[%emt 00:00:15]} O-O {[%clk 01:12:18]} {[%emt
00:00:26]} 11. O-O {[%clk 01:02:29]} {[%emt 00:04:48]} Qd7 {[%clk 01:07:42]}
{[%emt 00:05:07]} 12. Qd2 {[%clk 00:51:24]} {[%emt 00:11:34]} Rad8 {[%clk
01:04:36]} {[%emt 00:03:37]} 13. Rfd1 {[%clk 00:51:04]} {[%emt 00:00:49]} Nd5
{[%clk 00:53:18]} {[%emt 00:11:49]} 14. Qa2 {[%clk 00:29:29]} {[%emt 00:22:04]}
Nxc3 {[%clk 00:45:09]} {[%emt 00:08:40]} 15. Rxc3 {[%clk 00:29:53]} {[%emt
00:00:06]} Bf6 {[%clk 00:45:26]} {[%emt 00:00:12]} 16. Rcd3 {[%clk 00:18:36]}
{[%emt 00:11:47]} Ne7 {[%clk 00:44:48]} {[%emt 00:01:09]} 17. Qc2 {[%clk
00:15:20]} {[%emt 00:03:46]} c6 {[%clk 00:42:01]} {[%emt 00:03:16]} 18. a4
{[%clk 00:12:08]} {[%emt 00:03:43]} Nd5 {[%clk 00:41:02]} {[%emt 00:01:29]} 19.
Qb3 {[%clk 00:12:31]} {[%emt 00:00:07]} Nxe3 {[%clk 00:37:15]} {[%emt
00:04:17]} 20. fxe3 {[%clk 00:12:30]} {[%emt 00:00:31]} b5 {[%clk 00:37:02]}
{[%emt 00:00:43]} 21. Qc2 {[%clk 00:12:03]} {[%emt 00:00:57]} bxc4 {[%clk
00:36:07]} {[%emt 00:01:25]} 22. Qxc4 {[%clk 00:12:32]} Rb8 {[%clk 00:33:22]}
{[%emt 00:03:16]} 23. Rc1 {[%emt 00:04:02]} Rfc8 {[%clk 00:32:51]} 24. Qxa6
{[%clk 00:04:38]} {[%emt 00:05:52]} Ra8 {[%clk 00:31:45]} {[%emt 00:01:36]} 25.
Qb6 {[%clk 00:04:26]} {[%emt 00:00:41]} Rxa4 {[%clk 00:31:45]} {[%emt
00:00:30]} 26. Rdc3 {[%clk 00:04:31]} {[%emt 00:00:25]} Bd8 {[%clk 00:30:55]}
{[%emt 00:01:21]} 27. Qc5 {[%clk 00:04:53]} {[%emt 00:00:07]} Be7 {[%clk
00:31:13]} {[%emt 00:00:12]} 28. Qb6 {[%clk 00:02:52]} {[%emt 00:02:31]} Rxb4
{[%clk 00:30:29]} {[%emt 00:01:15]} 29. Qa6 {[%clk 00:03:16]} {[%emt 00:00:05]}
h6 {[%clk 00:29:33]} {[%emt 00:01:26]} 30. Rxc6 {[%clk 00:01:40]} {[%emt
00:02:07]} Rxc6 {[%clk 00:29:55]} {[%emt 00:00:08]} 31. Qxc6 {[%clk 00:01:59]}
{[%emt 00:00:11]} Qxc6 {[%clk 00:24:36]} {[%emt 00:05:49]} 32. Rxc6 {[%clk
00:02:28]} Rb2 {[%clk 00:24:51]} {[%emt 00:00:14]} 33. Rc8+ {[%clk 00:02:41]}
{[%emt 00:00:17]} Kh7 {[%clk 00:25:06]} {[%emt 00:00:16]} 34. Rc7 {[%clk
00:02:33]} {[%emt 00:00:38]} Bg5 {[%emt 00:00:07]} 35. f4 {[%clk 00:02:28]}
{[%emt 00:00:34]} Bf6 {[%clk 00:25:53]} {[%emt 00:00:06]} 36. Rxf7 {[%clk
00:02:03]} {[%emt 00:00:55]} Re2 {[%clk 00:25:41]} {[%emt 00:00:42]} 37. d5
{[%clk 00:00:50]} {[%emt 00:01:44]} exd5 {[%clk 00:24:47]} {[%emt 00:01:23]} 38.
Rd7 {[%clk 00:01:09]} {[%emt 00:00:11]} Rd2 {[%clk 00:24:31]} {[%emt 00:00:47]}
39. g3 {[%clk 00:00:38]} {[%emt 00:01:01]} Kg6 {[%clk 00:24:28]} {[%emt
00:00:32]} 40. Kf1 {[%clk 00:00:49]} {[%emt 00:00:19]} Kf5 {[%clk 00:24:34]}
{[%emt 00:00:24]} 41. Ke1 {[%clk 00:00:53]} {[%emt 00:00:26]} Rxh2 {[%clk
00:24:49]} {[%emt 00:00:15]} 42. Rxd5+ {[%clk 00:00:53]} {[%emt 00:00:31]} Ke4
{[%clk 00:24:39]} {[%emt 00:00:40]} 43. Rb5 {[%clk 00:01:17]} {[%emt 00:00:06]}
Bc3+ {[%clk 00:24:22]} {[%emt 00:00:47]} 44. Kf1 {[%clk 00:01:39]} {[%emt
00:00:07]} Kf3 {[%clk 00:24:26]} {[%emt 00:00:26]} 45. Kg1 {[%clk 00:01:50]}
{[%emt 00:00:19]} Rg2+ {[%clk 00:24:37]} {[%emt 00:00:19]} 46. Kh1 {[%clk
00:02:15]} {[%emt 00:00:05]} Rxg3 {[%clk 00:24:39]} {[%emt 00:00:29]} 47. Rb3
{[%clk 00:02:05]} {[%emt 00:00:40]} Bd2 {[%clk 00:24:36]} {[%emt 00:00:32]} 48.
Kh2 {[%clk 00:01:58]} {[%emt 00:00:38]} Rg2+ {[%clk 00:24:44]} {[%emt
00:00:22]} 49. Kh3 {[%clk 00:01:06]} {[%emt 00:01:21]} Re2 {[%clk 00:24:19]}
{[%emt 00:00:55]} 50. Rb7 {[%clk 00:01:21]} {[%emt 00:00:16]} Bc3 {[%clk
00:24:35]} {[%emt 00:00:14]} 51. f5 {[%clk 00:01:23]} {[%emt 00:00:28]} Rxe3
{[%clk 00:24:47]} {[%emt 00:00:18]} 52. Kh4 {[%clk 00:01:43]} {[%emt 00:00:10]}
Kf4 {[%clk 00:24:56]} {[%emt 00:00:21]} 53. f6 {[%clk 00:01:10]} {[%emt
00:01:03]} Bxf6 {[%clk 00:25:12]} {[%emt 00:00:13]} 54. Kh5 {[%clk 00:01:36]}
{[%emt 00:00:04]} Kf5 {[%clk 00:25:17]} {[%emt 00:00:26]} 55. Rb3 {[%clk
00:01:34]} {[%emt 00:00:32]} g6 {[%clk 00:25:28]} {[%emt 00:00:18]} 56. Kxh6
{[%clk 00:02:02]} {[%emt 00:00:02]} Rxb3 {[%clk 00:25:48]} {[%emt 00:00:10]}
0-1

[Event "NJSK 2026 Jeugd A"]
[Site "Helmond, Netherlands"]
[Date "2026.04.30"]
[Round "6.7"]
[White "Krylov, Philippe"]
[Black "Garay, Enzo"]
[Result "1-0"]
[TimeControl "90min/40moves + 30min + 30sec/move"]
[WhiteTitle "-"]
[BlackTitle "-"]
[WhiteFideId "1082930"]
[BlackFideId "40104125"]
[WhiteElo "2183"]
[BlackElo "2098"]

1. e4 {[%clk 01:30:48]} {[%emt 00:00:11]} e6 {[%clk 01:30:55]} {[%emt
00:00:05]} 2. d4 {[%clk 01:31:04]} {[%emt 00:00:15]} d5 {[%clk 01:31:21]}
{[%emt 00:00:05]} 3. Nd2 {[%clk 01:31:28]} {[%emt 00:00:06]} c5 {[%clk
01:31:46]} {[%emt 00:00:03]} 4. exd5 {[%clk 01:30:50]} {[%emt 00:01:07]} Qxd5
{[%clk 01:32:07]} {[%emt 00:00:10]} 5. Ngf3 {[%clk 01:30:23]} {[%emt 00:00:56]}
cxd4 {[%clk 01:32:18]} {[%emt 00:00:19]} 6. Bc4 {[%clk 01:30:43]} {[%emt
00:00:10]} Qd7 {[%clk 01:32:44]} {[%emt 00:00:04]} 7. O-O {[%clk 01:30:33]}
{[%emt 00:00:40]} Nc6 {[%clk 01:33:10]} {[%emt 00:00:04]} 8. Nb3 {[%clk
01:28:24]} {[%emt 00:02:38]} a6 {[%clk 01:32:01]} {[%emt 00:01:41]} 9. a4
{[%clk 01:24:43]} {[%emt 00:04:10]} Nf6 {[%clk 01:23:52]} {[%emt 00:08:39]} 10.
Qe2 {[%clk 01:20:13]} {[%emt 00:04:59]} Bd6 {[%clk 01:20:47]} {[%emt 00:03:35]}
11. Rd1 {[%clk 01:20:18]} {[%emt 00:00:24]} Qc7 {[%clk 01:17:43]} {[%emt
00:03:34]} 12. h3 {[%clk 01:17:26]} {[%emt 00:03:23]} O-O {[%clk 01:13:21]}
{[%emt 00:04:52]} 13. Nbxd4 {[%clk 01:15:19]} {[%emt 00:02:37]} Nxd4 {[%clk
01:12:49]} {[%emt 00:01:02]} 14. Rxd4 {[%clk 01:12:53]} {[%emt 00:02:55]} e5
{[%clk 01:10:31]} {[%emt 00:02:48]} 15. Rh4 {[%clk 01:10:07]} {[%emt 00:03:17]}
Bf5 {[%clk 01:07:34]} {[%emt 00:03:26]} 16. Bg5 {[%clk 01:05:21]} {[%emt
00:05:16]} b5 {[%clk 00:50:29]} {[%emt 00:17:37]} 17. Bxf6 {[%clk 01:04:18]}
{[%emt 00:01:32]} gxf6 {[%clk 00:50:26]} {[%emt 00:00:34]} 18. Bd3 {[%clk
01:04:30]} {[%emt 00:00:17]} Bg6 {[%clk 00:50:48]} {[%emt 00:00:08]} 19. Be4
{[%clk 00:54:58]} {[%emt 00:10:02]} Rab8 {[%clk 00:47:21]} {[%emt 00:03:57]} 20.
Bxg6 {[%clk 00:53:52]} {[%emt 00:01:36]} fxg6 {[%clk 00:47:12]} {[%emt
00:00:39]} 21. axb5 {[%clk 00:54:13]} {[%emt 00:00:08]} axb5 {[%clk 00:44:44]}
{[%emt 00:02:58]} 22. Qd3 {[%clk 00:53:47]} {[%emt 00:00:56]} Rfd8 {[%clk
00:42:03]} {[%emt 00:03:11]} 23. Ra6 {[%clk 00:51:49]} {[%emt 00:02:27]} Rb6
{[%clk 00:39:28]} {[%emt 00:03:06]} 24. Qb3+ {[%clk 00:42:59]} {[%emt
00:09:20]} Kg7 {[%clk 00:38:50]} {[%emt 00:01:08]} 25. Rxb6 {[%clk 00:43:19]}
{[%emt 00:00:11]} Qxb6 {[%clk 00:39:15]} {[%emt 00:00:05]} 26. Rxh7+ {[%clk
00:42:20]} {[%emt 00:01:29]} Kxh7 {[%clk 00:37:42]} {[%emt 00:02:02]} 27. Qf7+
{[%clk 00:42:47]} {[%emt 00:00:04]} Kh8 {[%clk 00:36:48]} {[%emt 00:01:24]} 28.
Qxf6+ {[%clk 00:43:08]} {[%emt 00:00:09]} Kg8 {[%clk 00:36:30]} {[%emt
00:00:46]} 29. Ng5 {[%clk 00:39:54]} {[%emt 00:03:45]} Qc7 {[%clk 00:33:34]}
{[%emt 00:03:26]} 30. Qxg6+ {[%emt 00:02:34]} 1-0

[Event "NJSK 2026 Jeugd A"]
[Site "Helmond, Netherlands"]
[Date "2026.04.30"]
[Round "6.8"]
[White "Heus, Daan"]
[Black "Van Arendonk, Polle"]
[Result "1/2-1/2"]
[TimeControl "90min/40moves + 30min + 30sec/move"]
[WhiteTitle "-"]
[BlackTitle "-"]
[WhiteFideId "40103757"]
[BlackFideId "1072048"]
[WhiteElo "2049"]
[BlackElo "2060"]

1. e4 {[%clk 01:30:57]} {[%emt 00:00:02]} e5 {[%clk 01:30:53]} {[%emt
00:00:07]} 2. Nf3 {[%clk 01:31:22]} {[%emt 00:00:05]} Nc6 {[%clk 01:31:20]}
{[%emt 00:00:03]} 3. Bb5 {[%clk 01:31:45]} {[%emt 00:00:07]} a6 {[%clk
01:31:47]} {[%emt 00:00:07]} 4. Ba4 {[%clk 01:32:10]} {[%emt 00:00:01]} Nf6
{[%clk 01:32:14]} {[%emt 00:00:05]} 5. Qe2 {[%clk 01:31:52]} {[%emt 00:00:46]}
b5 {[%clk 01:31:02]} {[%emt 00:01:43]} 6. Bb3 {[%clk 01:32:17]} {[%emt
00:00:04]} Bc5 {[%clk 01:31:04]} {[%emt 00:00:29]} 7. a4 {[%clk 01:32:33]}
{[%emt 00:00:14]} b4 {[%clk 01:25:20]} {[%emt 00:06:15]} 8. Bxf7+ {[%clk
01:32:20]} {[%emt 00:00:42]} Kxf7 {[%clk 01:25:46]} {[%emt 00:00:05]} 9. Qc4+
{[%clk 01:32:44]} {[%emt 00:00:05]} Ke8 {[%clk 01:18:19]} {[%emt 00:07:56]} 10.
Qxc5 {[%clk 01:33:08]} {[%emt 00:00:06]} Qe7 {[%clk 01:17:22]} {[%emt
00:01:28]} 11. Qxe7+ {[%clk 01:31:22]} {[%emt 00:02:14]} Kxe7 {[%clk 01:17:36]}
{[%emt 00:00:17]} 12. d3 {[%clk 01:30:27]} {[%emt 00:01:25]} d6 {[%clk
01:16:03]} {[%emt 00:02:03]} 13. Be3 {[%clk 01:24:58]} {[%emt 00:05:58]} h6
{[%clk 01:14:09]} {[%emt 00:02:25]} 14. h3 {[%clk 01:23:34]} {[%emt 00:01:53]}
g5 {[%clk 01:09:01]} {[%emt 00:05:39]} 15. Nbd2 {[%clk 01:19:40]} {[%emt
00:04:23]} Nh5 {[%clk 01:03:41]} {[%emt 00:05:51]} 16. g4 {[%clk 01:06:53]}
{[%emt 00:13:17]} Ng7 {[%clk 00:56:59]} {[%emt 00:07:11]} 17. O-O-O {[%clk
00:57:33]} {[%emt 00:09:49]} Bd7 {[%clk 00:50:44]} {[%emt 00:06:46]} 18. Rdg1
{[%clk 00:54:30]} {[%emt 00:03:33]} Ne6 {[%clk 00:43:38]} {[%emt 00:07:36]} 19.
h4 {[%clk 00:52:50]} {[%emt 00:02:10]} Kf6 {[%clk 00:44:02]} {[%emt 00:00:08]}
20. b3 {[%clk 00:38:27]} {[%emt 00:14:52]} Rag8 {[%clk 00:38:55]} {[%emt
00:05:36]} 21. Nf1 {[%clk 00:31:23]} {[%emt 00:07:34]} Ncd4 {[%clk 00:28:36]}
{[%emt 00:10:50]} 22. Bxd4 {[%clk 00:25:39]} {[%emt 00:06:14]} Nxd4 {[%clk
00:29:04]} {[%emt 00:00:02]} 23. Nxd4 {[%clk 00:24:39]} {[%emt 00:01:30]} exd4
{[%clk 00:29:33]} {[%emt 00:00:02]} 24. Nd2 {[%clk 00:21:19]} {[%emt 00:03:49]}
gxh4 {[%clk 00:24:32]} {[%emt 00:05:31]} 25. Rxh4 {[%clk 00:21:16]} {[%emt
00:00:33]} h5 {[%clk 00:24:59]} {[%emt 00:00:04]} 26. f3 {[%clk 00:19:10]}
{[%emt 00:02:34]} hxg4 {[%clk 00:24:24]} {[%emt 00:01:06]} 27. Rxh8 {[%clk
00:19:09]} {[%emt 00:00:31]} Rxh8 {[%clk 00:24:50]} {[%emt 00:00:05]} 28. fxg4
{[%clk 00:19:23]} {[%emt 00:00:16]} Rg8 {[%clk 00:24:54]} {[%emt 00:00:27]} 29.
Nf3 {[%clk 00:17:58]} {[%emt 00:01:54]} Rxg4 {[%clk 00:24:55]} {[%emt
00:00:29]} 30. Rxg4 {[%clk 00:17:58]} {[%emt 00:00:30]} Bxg4 {[%clk 00:25:21]}
{[%emt 00:00:04]} 31. Nxd4 {[%clk 00:18:10]} {[%emt 00:00:18]} c5 {[%clk
00:23:53]} {[%emt 00:01:58]} 32. Nc6 {[%clk 00:17:36]} {[%emt 00:01:04]} Ke6
{[%clk 00:21:45]} {[%emt 00:02:38]} 33. Kd2 {[%clk 00:14:45]} {[%emt 00:03:20]}
Kd7 {[%clk 00:17:03]} {[%emt 00:05:13]} 34. Na5 {[%clk 00:14:44]} {[%emt
00:00:31]} Ke6 {[%clk 00:16:24]} {[%emt 00:01:09]} 35. Nc4 {[%clk 00:14:45]}
{[%emt 00:00:28]} Bh5 {[%clk 00:16:41]} {[%emt 00:00:14]} 36. c3 {[%clk
00:11:11]} {[%emt 00:04:04]} bxc3+ {[%clk 00:14:51]} {[%emt 00:02:20]} 37. Kxc3
{[%clk 00:11:39]} {[%emt 00:00:02]} d5 {[%clk 00:15:12]} {[%emt 00:00:09]} 38.
exd5+ {[%clk 00:11:12]} {[%emt 00:00:57]} Kxd5 {[%clk 00:15:35]} {[%emt
00:00:07]} 39. Ne3+ {[%clk 00:11:05]} {[%emt 00:00:37]} Kc6 {[%clk 00:15:53]}
{[%emt 00:00:12]} 40. Nc2 {[%clk 00:08:10]} {[%emt 00:03:25]} Bd1 {[%clk
00:12:41]} {[%emt 00:03:41]} 41. Ne3 {[%clk 00:07:39]} {[%emt 00:01:02]} Bh5
{[%clk 00:11:36]} {[%emt 00:01:35]} 42. b4 {[%clk 00:05:20]} {[%emt 00:02:49]}
cxb4+ {[%clk 00:05:49]} {[%emt 00:06:17]} 43. Kxb4 {[%clk 00:05:40]} {[%emt
00:00:10]} Be2 {[%clk 00:05:34]} {[%emt 00:00:45]} 44. d4 {[%clk 00:05:04]}
{[%emt 00:01:05]} Kb6 {[%clk 00:03:40]} {[%emt 00:02:25]} 45. Nd5+ {[%clk
00:01:25]} {[%emt 00:04:08]} Kc6 {[%clk 00:02:25]} {[%emt 00:01:45]} 46. Nc3
{[%clk 00:22:52]} {[%emt 00:09:04]} Bf1 {[%clk 00:31:22]} {[%emt 00:01:33]} 47.
Na2 {[%clk 00:18:21]} {[%emt 00:05:00]} Kd5 {[%clk 00:30:47]} {[%emt 00:01:06]}
48. Kc3 {[%clk 00:18:36]} {[%emt 00:00:14]} Be2 {[%clk 00:24:32]} {[%emt
00:06:45]} 49. Nb4+ {[%clk 00:18:01]} {[%emt 00:01:06]} Kd6 {[%clk 00:23:57]}
{[%emt 00:01:05]} 50. Nd3 {[%clk 00:17:41]} {[%emt 00:00:50]} Bf1 {[%clk
00:24:02]} {[%emt 00:00:24]} 51. Kc4 {[%clk 00:17:49]} {[%emt 00:00:22]} Kc6
{[%clk 00:23:10]} {[%emt 00:01:23]} 52. Kc3 {[%clk 00:17:06]} {[%emt 00:01:13]}
Kd5 {[%clk 00:22:22]} {[%emt 00:01:18]} 53. Nf4+ {[%clk 00:17:04]} {[%emt
00:00:31]} Kc6 {[%clk 00:21:39]} {[%emt 00:01:13]} 54. Kb4 {[%clk 00:16:22]}
{[%emt 00:01:13]} Kd6 {[%clk 00:20:04]} {[%emt 00:02:05]} 55. Kc3 {[%clk
00:12:43]} {[%emt 00:04:09]} Kc6 {[%clk 00:20:13]} {[%emt 00:00:21]} 56. Kd2
{[%clk 00:12:57]} {[%emt 00:00:15]} Kd6 {[%clk 00:19:27]} {[%emt 00:01:16]} 57.
Ke3 {[%clk 00:13:14]} {[%emt 00:00:13]} Bc4 {[%clk 00:18:33]} {[%emt 00:01:24]}
58. a5 {[%clk 00:11:35]} {[%emt 00:02:10]} Kc6 {[%clk 00:17:22]} {[%emt
00:01:41]} 59. Kd2 {[%clk 00:11:09]} {[%emt 00:00:56]} Kb5 {[%clk 00:17:17]}
{[%emt 00:00:35]} 60. Kc3 {[%clk 00:11:29]} {[%emt 00:00:10]} Bf7 {[%clk
00:17:30]} {[%emt 00:00:16]} 61. d5 {[%clk 00:11:33]} {[%emt 00:00:26]} Kc5
{[%clk 00:16:57]} {[%emt 00:01:04]} 62. Ne6+ {[%clk 00:11:33]} {[%emt
00:00:30]} Kxd5 {[%clk 00:17:19]} {[%emt 00:00:07]} 63. Nc7+ {[%clk 00:11:56]}
{[%emt 00:00:07]} Kc6 {[%clk 00:17:45]} {[%emt 00:00:05]} 64. Nxa6 {[%clk
00:12:19]} {[%emt 00:00:07]} Kb5 {[%clk 00:18:12]} {[%emt 00:00:03]} 65. Nc5
{[%clk 00:12:43]} {[%emt 00:00:05]} Kxa5 {[%clk 00:18:36]} {[%emt 00:00:06]}
1/2-1/2